bitfinex-derivatives/quotes_SOLF0:USTF0_20251230
["timestamp","ask_amount","ask_price","bid_price","bid_amount"]
[1767107250923,23.2059,124.36,124.27,16.12413497]
[1767107251119,23.2059,124.36,124.27,16.07]
[1767107251425,23.2059,124.36,124.28,16.07]
[1767107252126,0.05778661,124.33,124.31,0.05634094]
[1767107252326,15.96,124.36,124.31,0.05634094]
[1767107253329,0.05659726,124.35,124.31,0.05634094]
[1767107254734,23.26289726,124.35,124.27,95.16]
[1767107254929,23.2063,124.35,124.27,95.16]
[1767107255127,23.2063,124.35,124.28,16.07]
[1767107255935,0.05766659,124.33,124.3,0.05759425]
[1767107258533,0.05766659,124.33,124.25,23.3216]
[1767107258732,7.2475,124.33,124.25,118.4416]
[1767107259430,0.05356045,124.3,124.28,0.05833047]
[1767107261934,15.96,124.34,124.28,0.05833047]
[1767107262442,23.2068,124.34,124.28,0.05833047]
[1767107262934,0.05189767,124.32,124.28,0.05833047]
[1767107264936,0.05189767,124.32,124.28,7.30843047]
[1767107265138,0.05189767,124.32,124.28,0.05833047]
[1767107265935,0.05189767,124.32,124.28,16.12833047]
[1767107266138,15.96,124.37,124.28,16.12833047]
[1767107266341,15.96,124.37,124.28,16.07]
[1767107266639,15.96,124.37,124.29,95.12]
[1767107267137,0.05314867,124.34,124.32,0.05228695]
[1767107270928,23.2051,124.37,124.32,0.05228695]
[1767107271839,7.2441,124.39,124.32,0.05228695]
[1767107272041,127.1257,124.44,124.32,0.05228695]
[1767107272042,0.05661396,124.37,124.32,15.54228695]
[1767107272238,0.05661396,124.37,124.33,0.05201323]
[1767107272746,7.2424,124.42,124.34,15.49]
[1767107273046,23.6524,124.42,124.34,15.49]
[1767107273650,0.0581251,124.39,124.37,0.05959009]
[1767107275450,7.2413,124.44,124.37,110.64959009]
[1767107275639,7.2413,124.44,124.37,110.59]
[1767107275840,23.6513,124.44,124.37,110.59]
[1767107276540,0.05698055,124.42,124.39,0.06116765]
[1767107277041,27.76666053,124.46,124.39,15.55116765]
[1767107277950,16.41,124.43,124.39,0.06116765]
[1767107278147,16.41,124.43,124.39,0.00116765]
[1767107278352,16.41,124.42,124.33,22.7369]
[1767107278536,16.41,124.42,124.34,95.08]
[1767107278945,16.41,124.42,124.33,22.7369]
[1767107279250,16.41,124.42,124.33,117.8169]
[1767107279452,0.05944349,124.39,124.36,0.0553469]
[1767107281039,0.05944349,124.39,124.31,7.248]
[1767107281040,16.22944349,124.39,124.31,7.248]
[1767107281242,16.17,124.39,124.3,110.68]
[1767107281447,16.17,124.39,124.31,15.6]
[1767107281749,23.4139,124.39,124.31,22.8482]
[1767107282151,0.00362807,124.36,124.34,0.0605298]
[1767107283039,223.9075,124.42,124.34,0.0605298]
[1767107283040,16.17,124.42,124.34,0.0605298]
[1767107283242,16.17,124.42,124.33,15.6]
[1767107283951,0.05155396,124.39,124.36,0.0538383]
[1767107284250,0.05155396,124.39,124.36,0.0038383]
[1767107290556,23.4108,124.45,124.38,15.6]
[1767107290858,16.17,124.45,124.38,22.8443]
[1767107291154,7.2396,124.47,124.39,95.06]
[1767107291356,0.05395883,124.44,124.41,0.05548051]
[1767107292353,16.17,124.48,124.41,0.05548051]
[1767107292654,16.17,124.48,124.41,95.11548051]
[1767107293359,16.17,124.48,124.41,110.71548051]
[1767107294058,23.4088,124.48,124.41,110.71548051]
[1767107295550,14.00173998,124.5,124.42,15.6]
[1767107295758,6.76393998,124.5,124.45,0.05849143]
[1767107296658,6.76393998,124.5,124.46,95.04]
[1767107296854,23.3055,124.54,124.46,110.49]
[1767107297055,16.07,124.54,124.49,0.060532]
[1767107297760,16.07,124.53,124.43,15.45]
[1767107298059,16.07,124.52,124.44,110.49]
[1767107298255,16.07,124.52,124.41,128.1106]
[1767107298451,16.07,124.51,124.42,95.04]
[1767107298650,16.07,124.51,124.42,110.49]
[1767107298848,0.0597842,124.48,124.45,0.05909611]
[1767107299658,0.0597842,124.48,124.41,95.02]
[1767107299864,23.3082,124.49,124.41,95.02]
[1767107300264,23.3082,124.49,124.41,102.2625]
[1767107300753,16.12877258,124.46,124.44,0.00035473]
[1767107300952,16.12877258,124.46,124.39,95.02]
[1767107301156,16.12877258,124.46,124.37,15.45]
[1767107301157,16.07,124.46,124.38,95.02]
[1767107301461,16.07,124.46,124.37,15.45]
[1767107301462,23.3106,124.45,124.37,110.47]
[1767107301859,23.3111,124.44,124.35,22.6957]
[1767107302053,0.05141575,124.42,124.4,0.05222269]
[1767107303362,0.05141575,124.42,124.4,0.00222269]
[1767107306466,16.12141575,124.42,124.34,22.6965]
[1767107306667,16.07,124.42,124.34,117.7165]
[1767107306861,16.07,124.42,124.35,15.45]
[1767107307366,0.05955932,124.4,124.37,0.05487069]
[1767107308560,7.2417,124.43,124.37,0.05487069]
[1767107308767,23.3105,124.45,124.37,0.05487069]
[1767107309066,16.07,124.44,124.36,15.45]
[1767107309671,0.05139212,124.41,124.39,0.05520893]
[1767107313263,16.07,124.47,124.39,0.05520893]
[1767107313464,16.07,124.47,124.38,15.45]
[1767107313770,16.07,124.47,124.4,15.45]
[1767107313974,16.07,124.5,124.4,15.45]
[1767107314170,16.07,124.5,124.4,110.49]
[1767107314376,0.05808802,124.46,124.44,0.06184455]
[1767107315965,0.05808802,124.46,124.37,112.6978]
[1767107315966,16.07,124.45,124.37,95.04]
[1767107316169,16.07,124.45,124.38,15.45]
[1767107316766,23.3105,124.45,124.38,15.45]
[1767107317277,0.05668184,124.43,124.4,0.06142173]
[1767107319975,16.07,124.49,124.4,15.51142173]
[1767107320182,16.07,124.48,124.39,95.02]
[1767107320675,16.07,124.48,124.39,110.47]
[1767107320872,16.13195455,124.45,124.36,15.45]
[1767107321079,16.07,124.45,124.38,95.02]
[1767107321371,23.311,124.44,124.36,117.7154]
[1767107321969,16.07,124.44,124.36,15.45]
[1767107322173,0.05556237,124.41,124.39,0.06201688]
[1767107322381,0.05556237,124.41,124.34,7.2463]
[1767107322382,16.12556237,124.41,124.33,15.45]
[1767107322678,23.3128,124.41,124.33,117.7172]
[1767107323178,23.3128,124.41,124.33,110.47]
[1767107323373,0.0617246,124.38,124.36,0.06015869]
[1767107323974,0.0017246,124.38,124.36,0.06015869]
[1767107325388,16.07,124.44,124.36,15.51015869]
[1767107325680,16.07,124.44,124.36,15.45]
[1767107325986,16.07,124.43,124.35,95.04]
[1767107326285,0.05704481,124.4,124.38,0.05400695]
[1767107326482,0.05704481,124.4,124.34,17.55729818]
[1767107326677,0.05704481,124.4,124.34,112.59729818]
[1767107327185,15.69704481,124.4,124.32,97.27729818]
[1767107327377,15.64,124.4,124.32,112.59729818]
[1767107327579,0.05888635,124.37,124.35,0.05675452]
[1767107328178,2.23729818,124.42,124.35,0.05675452]
[1767107328385,17.87729818,124.42,124.35,0.05675452]
[1767107328584,15.64,124.42,124.35,0.05675452]
[1767107329090,0.05998167,124.4,124.35,0.05675452]
[1767107330285,15.69998167,124.4,124.35,0.05675452]
[1767107331693,0.05998167,124.4,124.35,0.05675452]
[1767107333293,0.05998167,124.4,124.35,15.37675452]
[1767107333795,22.8819,124.43,124.35,15.37675452]
[1767107333991,15.64,124.43,124.35,15.32]
[1767107334394,7.2422,124.42,124.35,15.32]
[1767107334694,0.05872472,124.4,124.37,0.06189514]
[1767107335794,7.2411,124.44,124.37,0.06189514]
[1767107336095,21.63228645,124.46,124.37,15.32]
[1767107336096,15.64,124.46,124.37,15.32]
[1767107336291,7.2405,124.45,124.38,15.32]
[1767107336798,0.05902134,124.43,124.4,0.05188169]
[1767107337897,7.2392,124.47,124.4,15.37188169]
[1767107338196,7.2392,124.47,124.4,110.41188169]
[1767107339391,16.55,124.52,124.41,16.74]
[1767107339597,16.55,124.52,124.45,0.05105246]
[1767107339789,23.7872,124.51,124.45,0.05105246]
[1767107339991,23.7872,124.51,124.47,0.05406409]
[1767107340392,23.7872,124.51,124.47,0.00406409]
[1767107340393,7.2372,124.51,124.47,0.00406409]
[1767107340695,16.55,124.49,124.4,23.9831]
[1767107341494,0.06018906,124.46,124.43,0.06115608]
[1767107341694,0.06018906,124.46,124.43,0.00115608]
[1767107341891,16.61018906,124.46,124.38,7.244]
[1767107342092,16.61018906,124.46,124.38,23.984]
[1767107342093,16.55,124.46,124.38,23.984]
[1767107342590,23.79,124.46,124.38,23.984]
[1767107342796,0.06036544,124.43,124.41,0.0584422]
[1767107345898,0.06036544,124.43,124.36,16.74]
[1767107346503,7.30216544,124.43,124.36,16.74]
[1767107346898,7.30216544,124.43,124.38,0.05643707]
[1767107347296,0.06036544,124.43,124.38,16.79643707]
[1767107347994,0.06036544,124.43,124.38,24.04063707]
[1767107348995,0.06036544,124.43,124.39,16.74]
[1767107349195,0.00036544,124.43,124.39,16.74]
[1767107349501,0.00036544,124.43,124.39,23.9837]
[1767107349700,102.279,124.48,124.4,16.74]
[1767107350101,16.55,124.49,124.4,16.74]
[1767107350596,7.2392,124.47,124.4,16.74]
[1767107350902,0.05146115,124.45,124.42,0.05668664]
[1767107357708,15.67,124.52,124.43,15.95]
[1767107358610,15.67,124.52,124.44,15.95]
[1767107358811,0.05799394,124.49,124.46,0.05482192]
[1767107362807,7.2361,124.53,124.46,16.00482192]
[1767107363014,22.9061,124.53,124.46,16.00482192]
[1767107366210,15.67,124.52,124.46,0.05482192]
[1767107366399,15.67,124.52,124.48,0.06099173]
[1767107366604,15.67,124.54,124.48,0.06099173]
[1767107368411,15.67,124.54,124.48,16.01099173]
[1767107369105,110.67,124.55,124.48,16.01099173]
[1767107369707,7.2352,124.54,124.48,16.01099173]
[1767107370717,24.0052,124.54,124.48,0.06099173]
[1767107370909,24.0058,124.53,124.48,0.06099173]
[1767107378817,102.2349,124.55,124.48,16.27099173]
[1767107379017,118.7549,124.55,124.48,16.27099173]
[1767107379341,16.52,124.54,124.48,0.06099173]
[1767107379514,16.52,124.54,124.4,15.0124365]
[1767107379515,23.7586,124.48,124.4,16.21]
[1767107379828,23.7586,124.48,124.4,23.4528]
[1767107380014,7.2393,124.47,124.4,16.21]
[1767107380218,23.7593,124.47,124.4,16.21]
[1767107380626,23.7593,124.47,124.42,0.05361696]
[1767107380627,0.05582315,124.45,124.42,0.05361696]
[1767107381124,16.57582315,124.45,124.38,16.21]
[1767107381318,16.52,124.45,124.38,16.21]
[1767107381718,111.5,124.45,124.38,16.21]
[1767107381924,0.0544787,124.43,124.4,0.06113554]
[1767107382127,16.5744787,124.43,124.34,16.21]
[1767107382329,16.52,124.43,124.34,16.21]
[1767107382721,16.52,124.43,124.35,23.456]
[1767107382722,23.7618,124.43,124.35,23.456]
[1767107383120,94.98,124.44,124.38,0.05109148]
[1767107384220,0.0539008,124.42,124.38,0.05109148]
[1767107385222,127.0566,124.51,124.38,16.26109148]
[1767107385223,16.52,124.47,124.38,16.26109148]
[1767107385428,16.52,124.47,124.39,16.21]
[1767107385728,23.7594,124.47,124.39,16.21]
[1767107386123,16.84,124.43,124.35,16.26]
[1767107386432,0.05951769,124.4,124.38,0.0545884]
[1767107386622,0.05951769,124.4,124.32,95.0]
[1767107386822,16.84,124.4,124.32,16.26]
[1767107387223,24.0841,124.39,124.32,16.26]
[1767107387527,112.685,124.39,124.28,9.71642122]
[1767107387724,0.05332775,124.35,124.32,0.05197492]
[1767107387932,0.05332775,124.35,124.32,0.00197492]
[1767107399533,16.42,124.4,124.32,17.80197492]
[1767107399839,16.42,124.4,124.32,17.8]
[1767107400243,16.42,124.4,124.32,25.0477]
[1767107400432,16.42,124.4,124.29,130.5658]
[1767107400731,112.6662,124.41,124.33,0.00216543]
[1767107400732,0.05477545,124.36,124.33,0.00216543]
[1767107400937,0.05477545,124.36,124.29,17.8]
[1767107401126,0.05477545,124.36,124.31,7.2483]
[1767107401323,0.05477545,124.36,124.31,25.0483]
[1767107401630,0.05477545,124.36,124.32,0.06061605]
[1767107402230,0.05477545,124.36,124.32,25.10831605]
[1767107402530,23.6629,124.41,124.32,17.86061605]
[1767107402732,16.42,124.41,124.32,17.8]
[1767107402940,16.42,124.41,124.35,7.246]
[1767107403129,16.42,124.41,124.35,25.046]
[1767107403432,0.05824187,124.39,124.37,0.05616244]
[1767107404135,16.42,124.42,124.37,0.05616244]
[1767107404337,16.42,124.42,124.35,95.06]
[1767107404632,23.6623,124.42,124.35,95.06]
[1767107404836,16.42,124.45,124.36,17.8]
[1767107405243,0.05249259,124.42,124.39,0.05671879]
[1767107408640,16.47249259,124.42,124.33,17.8]
[1767107408946,16.42,124.42,124.33,17.8]
[1767107409144,16.42,124.41,124.33,25.0469]
[1767107409648,0.05683475,124.38,124.36,0.05568988]
[1767107410138,16.42,124.43,124.36,0.05568988]
[1767107410346,16.42,124.43,124.34,25.0464]
[1767107410737,16.42,124.43,124.35,17.8]
[1767107411138,0.05326176,124.4,124.38,0.05517648]
[1767107411533,16.47326176,124.4,124.33,112.86]
[1767107411737,16.42,124.4,124.33,112.86]
[1767107411939,16.42,124.43,124.34,17.8]
[1767107412140,16.42,124.43,124.35,25.0453]
[1767107412745,0.05297692,124.4,124.38,0.06047765]
[1767107412942,95.06,124.44,124.38,0.06047765]
[1767107413148,16.42,124.46,124.38,0.06047765]
[1767107413339,16.42,124.46,124.37,17.8]
[1767107413642,16.42,124.46,124.38,17.8]
[1767107414038,16.42,124.46,124.41,0.05946979]
[1767107415048,0.02003609,124.45,124.41,0.05946979]
[1767107415441,16.42,124.44,124.33,17.8]
[1767107415640,23.6609,124.43,124.34,17.8]
[1767107415941,16.42,124.42,124.34,17.8]
[1767107416348,0.05807203,124.39,124.37,0.05543898]
[1767107416547,0.05807203,124.39,124.34,25.0459]
[1767107416548,0.05807203,124.39,124.34,17.8]
[1767107417644,0.05807203,124.39,124.35,0.05309101]
[1767107418346,16.72807203,124.39,124.35,0.05309101]
[1767107419551,16.72807203,124.39,124.35,0.00309101]
[1767107420853,0.05807203,124.39,124.35,0.00309101]
[1767107421348,23.97127203,124.39,124.35,0.00309101]
[1767107421850,16.67,124.38,124.35,0.00309101]
[1767107422441,16.67,124.38,124.3,24.8581]
[1767107423449,0.0010362,124.35,124.33,0.05817148]
[1767107424862,118.9727,124.4,124.33,0.05817148]
[1767107425252,111.73,124.4,124.33,0.05817148]
[1767107425455,16.67,124.4,124.33,7.30467148]
[1767107425851,0.05716865,124.38,124.33,7.30467148]
[1767107426458,0.05716865,124.38,124.33,24.91467148]
[1767107427056,16.67,124.43,124.34,17.61]
[1767107427358,23.9112,124.43,124.34,17.61]
[1767107427559,16.67,124.43,124.36,7.2447]
[1767107427954,0.05725173,124.41,124.38,0.05378321]
[1767107430354,16.67,124.45,124.38,0.05378321]
[1767107431256,0.02257929,124.43,124.38,0.05378321]
[1767107431767,0.02257929,124.43,124.38,24.90738321]
[1767107434166,0.02257929,124.43,124.39,24.8528]
[1767107435461,0.00257929,124.43,124.4,17.61]
[1767107436366,16.67,124.47,124.41,95.04]
[1767107436664,16.67,124.47,124.41,112.65]
[1767107437266,16.67,124.47,124.43,0.05335562]
[1767107441359,7.2376,124.49,124.43,0.05335562]
[1767107441565,16.67,124.49,124.43,0.05335562]
[1767107442559,16.67,124.53,124.43,17.66335562]
[1767107442863,16.67,124.53,124.47,0.05130605]
[1767107443267,16.67,124.53,124.47,24.89960605]
[1767107443464,20.76026385,124.56,124.47,17.66130605]
[1767107443771,20.76026385,124.56,124.5,0.05209906]
[1767107443968,16.67,124.54,124.5,0.00209906]
[1767107444369,23.9047,124.54,124.5,0.00209906]
[1767107444670,16.67,124.53,124.5,0.00209906]
[1767107444871,16.72,124.53,124.5,0.00209906]
[1767107446381,0.05,124.53,124.5,0.00209906]
[1767107446878,17.72,124.53,124.5,0.00209906]
[1767107448677,17.67,124.52,124.44,118.8498]
[1767107449268,17.67,124.52,124.45,23.8495]
[1767107449575,0.00209906,124.5,124.47,16.6650471]
[1767107449778,21.76026385,124.56,124.48,23.8477]
[1767107450373,21.76026385,124.56,124.48,118.8277]
[1767107450775,21.76026385,124.56,124.51,0.05362723]
[1767107451881,17.67,124.55,124.51,0.05362723]
[1767107452581,4.09026385,124.56,124.51,0.05362723]
[1767107453268,17.67,124.57,124.51,0.05362723]
[1767107454381,17.67,124.57,124.51,7.28952723]
[1767107455078,17.67,124.57,124.51,0.05362723]
[1767107456277,17.67,124.56,124.51,0.00362723]
[1767107459391,17.72,124.55,124.51,0.00362723]
[1767107459590,24.9539,124.55,124.51,0.00362723]
[1767107459786,17.21,124.54,124.51,0.00362723]
[1767107460493,17.21,124.57,124.51,17.84362723]
[1767107460990,17.21,124.57,124.51,25.07962723]
[1767107461284,17.21,124.6,124.52,17.84]
[1767107461490,17.26782558,124.57,124.49,17.84]
[1767107461787,17.21,124.57,124.5,94.96]
[1767107462091,17.21,124.57,124.47,17.84]
[1767107462286,17.21,124.57,124.47,112.8]
[1767107462482,0.05613005,124.53,124.47,112.8]
[1767107462687,0.05613005,124.53,124.47,17.84]
[1767107463691,0.05613005,124.53,124.49,0.06120991]
[1767107464393,0.05613005,124.53,124.49,17.90120991]
[1767107464691,0.05613005,124.53,124.49,0.06120991]
[1767107465384,17.26613005,124.53,124.43,17.84]
[1767107465584,17.21,124.53,124.44,94.94]
[1767107465778,17.21,124.55,124.45,17.84]
[1767107466384,0.05642738,124.51,124.49,0.05253967]
[1767107466585,17.21,124.55,124.49,0.05253967]
[1767107467293,17.21,124.54,124.49,0.05253967]
[1767107467687,0.05451584,124.53,124.49,0.05253967]
[1767107468094,17.26451584,124.53,124.49,0.05253967]
[1767107468992,17.26451584,124.53,124.49,0.00253967]
[1767107470998,24.49971584,124.53,124.49,0.00253967]
[1767107471300,17.21,124.52,124.49,0.00253967]
[1767107472001,17.21,124.51,124.43,7.2403]
[1767107472202,17.21,124.51,124.41,25.0815]
[1767107472606,7.2369,124.5,124.41,25.0815]
[1767107472802,24.4469,124.5,124.41,25.0815]
[1767107473002,0.05792731,124.47,124.44,0.05605919]
[1767107475207,17.21,124.51,124.44,17.89605919]
[1767107475701,17.21,124.53,124.45,17.84]
[1767107476409,0.0523044,124.5,124.48,0.05367329]
[1767107477207,17.21,124.53,124.48,0.05367329]
[1767107477605,111.63,124.55,124.48,0.05367329]
[1767107477906,16.67,124.55,124.48,0.05367329]
[1767107478107,23.9039,124.55,124.48,0.05367329]
[1767107478406,0.05157476,124.53,124.48,0.05367329]
[1767107478703,0.05157476,124.53,124.48,24.30127329]
[1767107481814,16.72157476,124.53,124.48,0.05367329]
[1767107484511,16.72157476,124.53,124.48,2.28583089]
[1767107484710,16.72157476,124.53,124.48,0.05367329]
[1767107488511,0.05157476,124.53,124.48,17.06367329]
[1767107488709,0.05157476,124.53,124.48,19.29583089]
[1767107489111,0.05157476,124.53,124.48,17.06367329]
[1767107489312,0.05157476,124.53,124.48,19.29583089]
[1767107490216,0.05157476,124.53,124.48,17.06367329]
[1767107491823,0.05157476,124.53,124.48,0.05367329]
[1767107492118,16.72157476,124.53,124.48,0.05367329]
[1767107492424,16.72157476,124.53,124.48,0.00367329]
[1767107493620,16.67,124.52,124.48,0.00367329]
[1767107493924,16.67,124.52,124.44,17.01]
[1767107494123,16.67,124.49,124.42,17.01]
[1767107494918,0.05633822,124.47,124.44,0.05627243]
[1767107495422,16.72633822,124.47,124.4,129.19069903]
[1767107495812,0.05633822,124.47,124.41,17.01]
[1767107496323,0.05633822,124.47,124.43,0.06112415]
[1767107498620,0.05633822,124.47,124.43,17.07112415]
[1767107498826,111.63,124.52,124.43,17.07112415]
[1767107499116,16.67,124.51,124.43,17.01]
[1767107499725,0.0610897,124.48,124.46,0.05710454]
[1767107503826,16.7310897,124.48,124.41,111.99]
[1767107504328,16.7310897,124.48,124.41,17.01]
[1767107504532,16.7310897,124.48,124.41,111.99]
[1767107504930,16.7310897,124.48,124.43,0.05863094]
[1767107506825,16.7310897,124.48,124.39,16.38]
[1767107507026,16.67,124.48,124.39,16.38]
[1767107507625,0.05749705,124.45,124.39,16.38]
[1767107507829,16.37749705,124.45,124.42,0.00359575]
[1767107508131,16.37749705,124.45,124.38,94.98]
[1767107508132,16.32,124.45,124.38,94.98]
[1767107508734,0.05701955,124.43,124.4,0.05400472]
[1767107509927,23.5583,124.48,124.4,16.43400472]
[1767107510128,16.32,124.47,124.4,16.38]
[1767107510823,16.32,124.47,124.4,23.6223]
[1767107511031,0.05537882,124.45,124.42,0.05961617]
[1767107514337,16.32,124.5,124.42,16.43961617]
[1767107514640,16.32,124.5,124.42,16.38]
[1767107514828,16.32,124.5,124.43,7.2406]
[1767107515227,0.05749098,124.48,124.45,0.05287086]
[1767107517840,16.37749098,124.48,124.45,0.00287086]
[1767107518045,16.37749098,124.48,124.39,16.38]
[1767107518046,19.86809093,124.48,124.39,16.38]
[1767107518337,19.81059995,124.48,124.39,16.38]
[1767107518538,16.32,124.48,124.39,16.38]
[1767107518835,19.81059995,124.48,124.39,16.38]
[1767107519137,0.05333944,124.45,124.42,0.00364076]
[1767107519339,16.82333944,124.45,124.42,0.00364076]
[1767107519929,16.82333944,124.45,124.36,16.24]
[1767107520128,16.77,124.45,124.36,16.24]
[1767107520330,16.77,124.43,124.36,16.24]
[1767107520530,16.77,124.43,124.33,16.24]
[1767107520833,0.05593105,124.39,124.37,0.05229927]
[1767107521533,16.77,124.43,124.37,0.05229927]
[1767107522533,0.05080564,124.41,124.37,0.05229927]
[1767107525240,16.77,124.46,124.37,16.29229927]
[1767107525436,16.77,124.46,124.38,16.24]
[1767107525950,16.77,124.44,124.35,16.24]
[1767107526236,16.77,124.44,124.38,0.05364538]
[1767107526237,0.05473667,124.41,124.38,0.05364538]
[1767107527440,0.05473667,124.41,124.33,95.02]
[1767107527441,16.82473667,124.41,124.33,16.24]
[1767107527644,16.77,124.41,124.33,16.24]
[1767107527844,16.77,124.41,124.34,16.24]
[1767107528050,24.0111,124.43,124.34,16.24]
[1767107528344,0.06176163,124.4,124.37,0.05738557]
[1767107529348,16.77,124.44,124.37,16.29738557]
[1767107529537,16.77,124.44,124.35,16.24]
[1767107529738,24.0103,124.44,124.36,23.4847]
[1767107530246,0.06169203,124.41,124.39,0.05686479]
[1767107530447,0.00169203,124.41,124.39,0.05686479]
[1767107530745,119.0294,124.46,124.39,16.29686479]
[1767107530746,111.79,124.46,124.39,16.29686479]
[1767107531340,111.79,124.46,124.39,23.53976479]
[1767107531744,0.05413828,124.44,124.39,23.53976479]
[1767107532750,0.05413828,124.44,124.4,16.24]
[1767107534248,0.05413828,124.44,124.39,23.53976479]
[1767107534937,0.05413828,124.44,124.39,0.05686479]
[1767107536146,0.05413828,124.44,124.39,16.92686479]
[1767107536353,0.05413828,124.44,124.39,24.16966479]
[1767107538054,0.05413828,124.44,124.4,7.2424]
[1767107538349,0.05413828,124.44,124.4,24.1124]
[1767107538548,23.8579,124.48,124.4,24.1124]
[1767107539142,16.62,124.48,124.41,7.2418]
[1767107539351,16.62,124.48,124.4,16.87]
[1767107539553,0.04727065,124.45,124.43,0.05352514]
[1767107540048,7.2368,124.5,124.43,7.29412514]
[1767107540244,23.8568,124.5,124.43,7.29412514]
[1767107540441,16.62,124.5,124.43,24.16412514]
[1767107541149,16.62,124.5,124.43,7.29412514]
[1767107542057,23.857,124.5,124.43,0.05352514]
[1767107542251,16.62,124.49,124.43,0.05352514]
[1767107542753,16.62,124.48,124.43,0.05352514]
[1767107543655,23.8579,124.48,124.43,0.05352514]
[1767107544157,16.62,124.47,124.43,0.05352514]
[1767107544357,23.8585,124.47,124.43,0.05352514]
[1767107544551,16.62,124.46,124.43,0.00352514]
[1767107545553,16.67,124.46,124.43,0.00352514]
[1767107545860,0.05,124.46,124.43,0.00352514]
[1767107552060,16.62,124.48,124.43,2.23786433]
[1767107553156,16.62,124.46,124.43,0.00352514]
[1767107553361,18.85433919,124.46,124.43,0.00352514]
[1767107554161,26.09353919,124.46,124.43,0.00352514]
[1767107554362,18.85433919,124.46,124.43,0.00352514]
[1767107555258,23.8584,124.48,124.43,0.00352514]
[1767107555562,16.62,124.48,124.43,0.00352514]
[1767107556058,16.62,124.47,124.43,0.00352514]
[1767107556558,9.47223919,124.48,124.43,0.00352514]
[1767107556559,16.62,124.49,124.43,0.00352514]
[1767107556761,16.62,124.49,124.45,0.06066349]
[1767107558358,16.62,124.48,124.45,0.00066349]
[1767107558549,16.62,124.5,124.45,0.00066349]
[1767107558750,18.85433919,124.5,124.45,0.00066349]
[1767107558954,16.62,124.48,124.45,0.00066349]
[1767107559162,16.6748556,124.48,124.45,0.00066349]
[1767107559558,0.0548556,124.48,124.45,0.00066349]
[1767107562364,0.0548556,124.48,124.45,2.23500268]
[1767107562565,16.62,124.51,124.45,2.23500268]
[1767107564066,16.62,124.51,124.45,0.00066349]
[1767107568065,18.85433919,124.51,124.45,0.00066349]
[1767107568575,16.53,124.48,124.45,0.00066349]
[1767107568869,16.53,124.48,124.45,0.00233577]
[1767107569770,16.58230227,124.48,124.45,0.00233577]
[1767107570471,18.76433919,124.47,124.41,7.2418]
[1767107571472,18.82181936,124.45,124.38,16.61]
[1767107572371,18.82181936,124.45,124.38,23.8535]
[1767107572561,18.82181936,124.45,124.4,0.05946476]
[1767107575766,2.23433919,124.41,124.36,23.9144]
[1767107575971,19.60433919,124.43,124.36,23.9144]
[1767107576170,19.60433919,124.43,124.37,7.2441]
[1767107576776,0.00019673,124.41,124.39,0.05138696]
[1767107576971,0.00019673,124.41,124.38,23.9135]
[1767107576972,17.37,124.44,124.38,23.9135]
[1767107577868,0.05940465,124.42,124.4,0.06083602]
[1767107581376,17.37,124.46,124.4,16.73083602]
[1767107581676,2.23433919,124.47,124.4,16.73083602]
[1767107581879,19.60433919,124.47,124.4,16.73083602]
[1767107582484,0.0530547,124.45,124.4,16.73083602]
[1767107582671,0.0530547,124.45,124.4,23.97323602]
[1767107584079,0.0530547,124.45,124.41,23.5415]
[1767107584476,2.23433919,124.43,124.35,16.30034245]
[1767107584676,2.23433919,124.43,124.32,112.7284]
[1767107584677,2.23433919,124.39,124.32,16.3]
[1767107585471,0.05996484,124.37,124.34,0.06133205]
[1767107587481,0.05996484,124.37,124.34,7.30703205]
[1767107587685,17.01,124.41,124.34,23.60703205]
[1767107587892,17.01,124.41,124.34,16.36133205]